Cogmind - Beta 15 @@@ ROGUE MODE // 2025.05.18 @ 19:05:05 Player: Windjigo Result: Destroyed by X-57 Shotgunner with High-powered Shotgun Performance ------------- Evolutions (2) 1000 Regions Visited (3) 600 Robots Destroyed (43) 215 Value Destroyed (1344) 1344 Prototype IDs (8) 160 Alien Tech Used (0) 0 Bonus (0) 0 TOTAL SCORE: 3319 Bonus ------- None Cogmind --------- Core Integrity 0/550 Matter 7/300 Energy 200/200 System Corruption 3% Temperature Hot (244) Movement Core (850) Ox16 Location -8/Materials Parts ------- > --- POWER (1) -------- Subdweller Power Source > --- PROPULSION (3) --- (None) > --- UTILITY (4) ------ High-capacity Storage Unit Makeshift Hacking Suite > --- WEAPON (3) ------- Minigun Enhanced Autogun > --- INVENTORY (20) --- Subdweller Power Source Light Nuclear Core High-capacity Storage Unit High-capacity Matter Pod (200) Subdweller Optics Improved Signal Interpreter Particle Charger Reaction Control System Scrap Shield System Shield Riot Gun Subdweller Beam Cannon Welding Torch Piercing Trap Scrap Shield Fragment (49) Peak State ------------ > --- POWER ------------ Cooled Ion Engine > --- PROPULSION ------- Advanced Treads Subdweller Monowheel Subdweller Monowheel > --- UTILITY ---------- Improved Heat Sink High-capacity Storage Unit Makeshift Light Armor Plating Makeshift Hacking Suite > --- WEAPON ----------- Subdweller Beam Cannon Minigun Minigun > --- INVENTORY -------- Subdweller Power Source Subdweller Power Source Subdweller Power Source Light Nuclear Core Medium Storage Unit High-capacity Matter Pod Subdweller Optics Signal Interpreter Improved Salvage Targeting Computer Scrap Shield EM Disruption Field System Shield Riot Gun Particle Gun Subdweller Beam Cannon Minigun Welding Torch Piercing Trap Scrap Shield Fragment [Rating: 34] Favorites ----------- Power Cooled Ion Engine Engine Cooled Ion Engine Propulsion Subdweller Monowheel Treads Advanced Treads Wheel Subdweller Monowheel Utility High-capacity Storage Unit Device Seismic Detector Storage High-capacity Storage Unit Processor Signal Interpreter Hackware Makeshift Hacking Suite Protection Makeshift Ablative Armor Weapon Subdweller Beam Cannon Energy Gun Medium Laser Energy Cannon Subdweller Beam Cannon Ballistic Gun Enhanced Autogun Ballistic Cannon Light Cannon Build | -11 -10 -10 -8 ------- Run | Yrd Mat Sub Mat Slots Evolved 4 | . . . 4 Power . | . . . . Propulsion 1 | . . . 1 Utility 2 | . . . 2 Weapon 1 | . . . 1 Parts Attached 57 | 7 4 19 27 Power 8 | 1 . 4 3 Engine 8 | 1 . 4 3 Core . | . . . . Reactor . | . . . . Propulsion 13 | 2 2 4 5 Treads 1 | . . . 1 Leg . | . . . . Wheel 12 | 2 2 4 4 Hover . | . . . . Flight . | . . . . Utility 15 | 2 2 2 9 Device 4 | 1 . . 3 Storage 4 | 1 2 . 1 Processor 2 | . . 1 1 Hackware 1 | . . . 1 Protection 4 | . . 1 3 Artifact . | . . . . Weapon 21 | 2 . 9 10 Energy Gun 3 | 1 . 1 1 Energy Cannon 5 | . . 3 2 Ballistic Gun 10 | 1 . 4 5 Ballistic Cannon 3 | . . 1 2 Launcher . | . . . . Special Weapon . | . . . . Impact Weapon . | . . . . Slashing Weapon . | . . . . Piercing Weapon . | . . . . Special Melee Weapon . | . . . . Unidentified Prototypes 5 | . . . 5 Parts Lost 17 | . 1 2 14 Power 2 | . . . 2 Propulsion 6 | . 1 . 5 Utility 4 | . . 1 3 Weapon 5 | . . 1 4 Highest Loss Streak 9 | . 1 1 9 To Critical Strikes . | . . . . Average Backups 15 | 2 11 18 16 Power 2 | 1 1 2 3 Propulsion 1 | . 1 2 . Utility 6 | . 3 7 7 Weapon 4 | 1 3 5 3 Tool/Special . | . . . . Unused Backups 36 | . . 15 21 Power 7 | . . 3 4 Propulsion 2 | . . 1 1 Utility 12 | . . 2 10 Weapon 14 | . . 9 5 Tool/Special 1 | . . . 1 Average Slot Usage (%) 98 | . 99 98 95 Engine 12 | . 14 14 8 Wheel 26 | . 27 28 22 Device 5 | . 14 . 7 Storage 12 | . 14 14 9 Processor 1 | . . 1 1 Hackware 2 | . . . 8 Protection 8 | . . 10 8 Energy Gun 5 | . 14 4 . Energy Cannon 7 | . . 9 10 Ballistic Gun 12 | . 14 11 13 Ballistic Cannon 1 | . . 2 2 Peak Build Rating 34 | 7 8 23 34 Average Rating 20 | 5 7 18 30 On Entrance 7 | . 7 8 15 Naked Turns . | . . . . Heaviest Build 73 | 13 48 65 73 Greatest Support 56 | 26 26 40 56 Greatest Overweight (x) 17 | 2 1 2 17 Average Overweight (x) 1 | . . 1 1 Largest Inventory Capacity 20 | 8 20 20 20 Average Capacity 19 | 7 17 20 20 Most Carried 20 | 6 15 20 20 Average Carried 17 | 2 11 19 19 Final Capacity 20 | 8 20 20 20 Final Carried 19 | 3 15 19 16 Class Distribution -------------------- 40% | Mutant 22% | Derelict-Mutant 18% | Scavenger-Tank 11% | Tank 5% | Scavenger-Mutant Dominant Class ---------------- Mutant | -10/Materials Derelict-Mutant | -10/Subcaves Scavenger-Tank | -8/Materials Resources | -11 -10 -10 -8 ----------- Run | Yrd Mat Sub Mat Matter Collected 1627 | 303 41 554 729 Remotely . | . . . . Salvage Created 1727 | 117 135 421 1054 Parts 106 | 3 4 39 60 Haulers Intercepted 4 | . 1 . 3 Recyclers Shooed . | . . . . Parts Field Recycled . | . . . . Retrieved Matter . | . . . . Parts Self-Destructed 1 | . . 1 . Prevented . | . . . . Kills | -11 -10 -10 -8 ------- Run | Yrd Mat Sub Mat Combat Hostiles Destroyed 34 | . 3 9 22 Guns 17 | . 3 5 9 Cannons 16 | . . 3 13 Classes Destroyed 12 | 2 3 2 5 Builder 1 | . . . 1 Tunneler 1 | 1 . . . Hauler 4 | . 1 . 3 Recycler 1 | 1 . . . Watcher 2 | . . . 2 Swarmer 8 | . 1 1 6 Grunt 11 | . 2 . 9 Duelist 2 | . . . 2 Sentry 3 | . . 1 2 Specialist 2 | . . . 2 Heavy 1 | . . . 1 Subdweller 7 | . . 7 . Best Kill Streak 4 | 2 2 2 4 Combat Bots Only 4 | . 2 2 4 Max Kills in Single Turn 1 | 1 1 1 1 Gunslinging . | . . . . Exploded . | . . . . Melee . | . . . . Uniques/NPCs Destroyed . | . . . . Combat | -11 -10 -10 -8 -------- Run | Yrd Mat Sub Mat Hostile Shots Fired 336 | . 43 38 255 Missed 96 | . 12 11 73 Hits 240 | . 31 27 182 Melee 7 | . . . 7 Projectile 233 | . 31 27 175 Critical Strikes 8 | . . 2 6 Damage Taken 3938 | . 280 697 2961 Core 765 | . 70 142 553 Absorbed by Shields . | . . . . Regen/Repaired (Parts) 33 | . . . 33 Core Remaining (%) 57 | 100 . 15 . Volleys Fired 155 | 11 17 37 90 Largest 3 | 2 2 2 3 Hottest 193 | 70 70 110 193 Shots Fired 361 | 22 34 73 232 Gun 206 | 22 34 45 105 Cannon 155 | . . 28 127 Launcher . | . . . . Special . | . . . . Kinetic 210 | 11 17 37 145 Thermal 151 | 11 17 36 87 Explosive . | . . . . Electromagnetic . | . . . . Robot Hit Streak 23 | 4 7 23 13 Robot Miss Streak 5 | 3 5 2 5 Penetration Max . | . . . . Secondary Targets 1 | . 1 . . Max Gunslinging Chain 1 | . 1 . . Shots Hit Robots 210 | 12 20 48 130 Core Hits 72 | 3 7 16 46 Critical Kills 2 | . . 2 . Critical Parts Destroyed 1 | . . . 1 Critical Strikes 11 | 1 4 5 1 Burn 8 | 1 4 3 . Meltdown 2 | . . 2 . Destroy 1 | . . . 1 Melee Attacks . | . . . . Impact . | . . . . Slashing . | . . . . Piercing . | . . . . Sneak Attacks . | . . . . Combat Hostiles . | . . . . Follow-up Attacks . | . . . . Damage Inflicted 4385 | 163 255 956 3011 Guns 1980 | 163 255 425 1137 Cannons 2405 | . . 531 1874 Explosions . | . . . . Melee . | . . . . Ramming . | . . . . Kinetic 2107 | 49 118 343 1597 Thermal 2278 | 114 137 613 1414 Explosive . | . . . . Electromagnetic . | . . . . Impact . | . . . . Slashing . | . . . . Piercing . | . . . . Highest Corruption 3 | . . . 3 Average Corruption 3 | . . . 3 Corruption Purged . | . . . . Corruption Blocked . | . . . . Effects 17 | . . . 17 Message Errors 5 | . . . 5 Matter Fused 5 | . . . 5 Heat Flow Errors 1 | . . . 1 Energy Discharges 2 | . . . 2 Parts Fused 1 | . . . 1 Data Loss (minor) 2 | . . . 2 Weapon Failures 1 | . . . 1 Overload Shots . | . . . . Overflow Damage 10 | . . . 10 Projectiles 10 | . . . 10 Explosions . | . . . . Melee . | . . . . Knockbacks 7 | . . . 7 Impact . | . . . . Kinetic 7 | . . . 7 Secondary . | . . . . Self-Inflicted Damage . | . . . . Shots . | . . . . Rammed . | . . . . Targets Rammed . | . . . . Kicked . | . . . . Crushed . | . . . . Highest Temperature 452 | 54 129 94 452 Average Temperature 126 | 25 43 29 168 Received Heat Transfer 1089 | . 57 177 855 Effects 16 | . . . 16 Shutdowns 5 | . . . 5 Energy Bleed 4 | . . . 4 Interference 4 | . . . 4 Matter Decay 2 | . . . 2 Short Circuit 1 | . . . 1 Siege Activations . | . . . . Martial Activations . | . . . . Shielding Activations . | . . . . Robots Disrupted . | . . . . Combat Hostiles . | . . . . Robots Corrupted . | . . . . Combat Hostiles . | . . . . Parts Fried . | . . . . Impact Corruptions . | . . . . Robots Melted 2 | . . 2 . Combat Hostiles 2 | . . 2 . Parts Melted 6 | . 2 3 1 Heat Transferred 4366 | 407 703 1258 1998 Parts Sabotaged . | . . . . Parts Stolen . | . . . . Parts Stripped . | . . . . Power Chain Reactions . | . . . . Alert | -11 -10 -10 -8 ------- Run | Yrd Mat Sub Mat Maximum Alert Level 1 | . . . 1 Low Security (%) 96 | 100 100 . 94 Level 1 3 | . . . 5 Level 2 . | . . . . Level 3 . | . . . . Level 4 . | . . . . Level 5 . | . . . . High Security . | . . . . Max Security . | . . . . Peak Influence 226 | 10 36 . 226 Initial . | . . . . Average 34 | . 4 . 55 Influence Increases 884 | 10 97 40 737 Destroy 0b10 Robot/C 540 | . 60 40 440 Destroy 0b10 Robot/NC 45 | 10 5 . 30 Destroy Leader 112 | . 12 . 100 Successful Hack 40 | . 4 . 36 Disable Machine 15 | . . . 15 Destroy Structure 42 | . 1 . 41 Lose Combat Pursuer 90 | . 15 . 75 Influence Decreases 736 | 10 97 40 589 Time Decay 452 | 10 87 40 315 Lost Part 150 | . 10 . 140 Purge Threat 134 | . . . 134 Squads Dispatched 5 | . 1 . 4 Investigation . | . . . . Extermination . | . . . . Reinforcement 4 | . 1 . 3 Assault . | . . . . Garrison 1 | . . . 1 Intercept . | . . . . Searches Triggered . | . . . . Construction Impeded . | . . . . Haulers Reinforced . | . . . . Active Scanning Responses . | . . . . Cargo Convoy Interrupts . | . . . . Stealth | -11 -10 -10 -8 --------- Run | Yrd Mat Sub Mat Distress Signals 4 | . 1 . 3 Communications Jammed . | . . . . Distress Signals . | . . . . Times Spotted 61 | . 14 12 35 Peak Tracking Total 8 | . 6 2 8 Tactical Retreats 4 | . 1 . 3 Traps | -11 -10 -10 -8 ------- Run | Yrd Mat Sub Mat Traps Triggered 3 | . . 2 1 Indirectly . | . . . . Trap Hack Attempts . | . . . . Triggered . | . . . . Disarmed . | . . . . Reprogrammed . | . . . . Reused . | . . . . Traps Extracted . | . . . . Installed . | . . . . Triggered . | . . . . Most Traps Carried 1 | . . 1 1 Machines | -11 -10 -10 -8 ---------- Run | Yrd Mat Sub Mat Machines Disabled 1 | . . . 1 Max in Single Turn 1 | . . . 1 Machines Repaired . | . . . . Machines Dismantled . | . . . . Machines Sabotaged . | . . . . Overloaded Fab Kills . | . . . . Hacking | -11 -10 -10 -8 --------- Run | Yrd Mat Sub Mat Machines Accessed 12 | . 3 . 9 Terminals 11 | . 3 . 8 Fabricators . | . . . . Repair Stations 1 | . . . 1 Recycling Units . | . . . . Scanalyzers . | . . . . Garrison Access . | . . . . Total Hacks 55 | . 7 . 48 Successful 28 | . 2 . 26 Failed 27 | . 5 . 22 Catastrophic 2 | . 1 . 1 Database Lockouts . | . . . . Manual 30 | . 6 . 24 Terminals 52 | . 7 . 45 Fabricators . | . . . . Repair Stations 3 | . . . 3 Recycling Units . | . . . . Scanalyzers . | . . . . Garrison Access . | . . . . Terminal Hacks 17 | . . . 17 Robot Analysis 1 | . . . 1 Prototype ID Bank 2 | . . . 2 Branch Access Points 1 | . . . 1 Emergency Access Points 2 | . . . 2 Alert Level 1 | . . . 1 Unreport Threat 1 | . . . 1 Locate Traps 1 | . . . 1 Patrol Status 1 | . . . 1 Assault Status 1 | . . . 1 Hauler Manifests 1 | . . . 1 Registered Components 1 | . . . 1 Registered Prototypes 1 | . . . 1 Zone Layout 3 | . . . 3 Fabricator Hacks . | . . . . Repair Station Hacks 2 | . . . 2 Scan Component 1 | . . . 1 Repair 1 | . . . 1 Recycling Unit Hacks . | . . . . Scanalyzer . | . . . . Garrison Access Hacks . | . . . . Unauthorized Hacks 9 | . 2 . 7 Terminals 9 | . 2 . 7 Botnet 9 | . 2 . 7 Fabricators . | . . . . Repair Stations . | . . . . Recycling Units . | . . . . Scanalyzers . | . . . . Garrison Access . | . . . . Data Cores Recovered . | . . . . Used . | . . . . Hacking Detections 12 | . 3 . 9 Full Trace Events . | . . . . Feedback Events . | . . . . Feedback Blocked . | . . . . Robot Schematics Acquired . | . . . . Robots Built . | . . . . Authchips . | . . . . Time . | . . . . Total Robot Build Rating . | . . . . Part Schematics Acquired . | . . . . Parts Built . | . . . . Authchips . | . . . . Time . | . . . . Total Part Build Rating . | . . . . Parts Repaired 1 | . . . 1 Time 32 | . . . 32 Parts Recycled . | . . . . Recycled Matter . | . . . . Retrieved Matter . | . . . . Retrieved Components . | . . . . Parts Scanalyzed . | . . . . Part Schematics Acquired . | . . . . Parts Damaged . | . . . . Bothacking | -11 -10 -10 -8 ------------ Run | Yrd Mat Sub Mat Used RIF Installer . | . . . . Robots Hacked . | . . . . Non-combat . | . . . . Combat . | . . . . Robot Hacks Applied . | . . . . Relay Couplers Released . | . . . . Fabnet Peak Effective % . | . . . . Robots Rewired . | . . . . Allies Hacked . | . . . . Hacks Repelled . | . . . . Allies | -11 -10 -10 -8 -------- Run | Yrd Mat Sub Mat Total Allies . | . . . . Largest Group . | . . . . Highest-Rated Group . | . . . . Highest-Rated Ally . | . . . . Total Orders . | . . . . Ally Attacks . | . . . . Total Damage . | . . . . Kills . | . . . . Allies Corrupted . | . . . . Allies Melted . | . . . . Intel | -11 -10 -10 -8 ------- Run | Yrd Mat Sub Mat Active Infowar (turns) 1028 | 22 697 92 217 Optics 217 | . . . 217 Seismic 811 | 22 697 92 . Robot Analysis Total 1 | . . . 1 Derelict Logs Recovered . | . . . . Drone Launches . | . . . . Drone Recoveries . | . . . . Exploration | -11 -10 -10 -8 ------------- Run | Yrd Mat Sub Mat Turns Passed 3685 | 110 697 1709 1169 Spaces Moved 2266 | 70 353 1217 626 Core 24 | 23 . . 1 Treads . | . . . . Legs . | . . . . Wheels 2242 | 47 353 1217 625 Hover . | . . . . Flight . | . . . . Fastest Speed 50 | 50 90 105 103 Average Speed 111 | 79 102 117 110 Slowest Speed 900 | 150 105 120 900 Overloaded Moves . | . . . . Propulsion Burnouts . | . . . . Robots Hopped . | . . . . Potential Cave-ins 2 | . . . 2 Cave-ins Triggered . | . . . . Exploration Rate (%) 37 | 4 52 56 39 Regions Visited 3 Branch Regions 1 Pre-discovered Areas 1 | . . 1 . Known Exits Taken 1 | . . 1 . Unknown Exits Taken 2 | 1 1 . . Scrap Searched 9 | . . 9 . Spaces Dug 9 | . . . 9 Terrain Destroyed 40 | . . 2 38 Melee . | . . . . Projectile 40 | . . 2 38 AOE . | . . . . Terrain Rammed . | . . . . Walls Destroyed . | . . . . Machines Disabled . | . . . . Actions | -11 -10 -10 -8 --------- Run | Yrd Mat Sub Mat Total 3156 | 101 653 1443 959 Wait 512 | 6 264 95 147 Move 2263 | 69 352 1216 626 Hop . | . . . . Pick Up 87 | 8 14 36 29 Fast Attach 13 | 2 . 1 10 Attach 24 | 5 1 5 13 Detach 2 | . . 1 1 Swap 33 | . 4 15 14 Drop 67 | . 1 37 29 Fire 155 | 11 17 37 90 Melee . | . . . . Ram . | . . . . Kick . | . . . . Crush . | . . . . Escape Stasis . | . . . . Rewire . | . . . . Trap . | . . . . Miscellaneous . | . . . . Route ------- -11/Scrapyard -10/Materials (discovered 3 exits: [*Mat] / [*Min] / [*Sub]) -10/Subcaves -8/Materials (discovered 1 exit: [*Fac]) History --------- Turn | Location | Event 11 | -11/Scrapyard | Discovered new exit (range 15) 111 | -11/Scrapyard | Entered Materials 256 | -10/Materials | Discovered new exit (range 9) 307 | -10/Materials | Build established: Mutant 401 | -10/Materials | Discovered new exit (range 15) 736 | -10/Materials | Discovered new exit (range 10) 808 | -10/Materials | Entered Subcaves 819 | -10/Subcaves | Learned location of Zion (-6) 819 | -10/Subcaves | Met a Zionite searching for "candidates" 1369 | -10/Subcaves | Shifting Twisted Machinery released Sub. Beam Cannon 1381 | -10/Subcaves | Shifting Twisted Machinery released Sub. Machine Gun 1711 | -10/Subcaves | Build established: Derelict-Mutant 2229 | -10/Subcaves | Discovered new exit (range 5) 2233 | -10/Subcaves | Core integrity fell below 50% 2272 | -10/Subcaves | Core integrity fell below 20% 2470 | -10/Subcaves | Identified exit to Materials 2517 | -10/Subcaves | Entered Materials 2517 | -8/Materials | Evolved 4 slots: Propulsion x1, Utility x2, Weapon x1 2805 | -8/Materials | Lost 3 parts (1p1n1w) 2991 | -8/Materials | Build established: Scavenger-Tank 3189 | -8/Materials | Repaired Sub. Monowheel 3300 | -8/Materials | Discovered new exit (range 3) 3575 | -8/Materials | Build established: Tank 3637 | -8/Materials | Garrison activated, responded to threat 3649 | -8/Materials | Core integrity fell below 50% 3679 | -8/Materials | Core integrity fell below 20% 3686 | -8/Materials | Destroyed by X-57 Shotgunner with High-powered Shotgun Last Messages --------------- shutdown. 03665_ Assault Cannon destroyed. 03666_ Overheating: Matter decay (-16). 03666_ Sub. Monowheel destroyed. 03669_ A-02 Transporter suffers critical hit (Burn). 03670_ Power failure, Sub. Power Source shutdown. 03670_ Overheating: Energy bleed (-33). 03670_ Hvy. Particle Cannon destroyed. 03671_ Overheating: System interference. 03671_ Imp. Heat Sink temporarily disabled. 03671_ Minigun temporarily disabled. 03671_ Imp. Heat Sink destroyed. 03671_ Critical hit (Burn: +37). 03679_ Knocked back. 03681_ Power failure, Sub. Power Source shutdown. 03685_ Imp. Light Armor Plating destroyed. 03686_ Knocked back. Map ----- +----------------------------------------------------+ | ??????????????????????????????????# """ # *=[ | | ??????????????????????????????????# """ + =/% | | ??????????????????????????????????# # #[ | | ??????????????????????????????????# # # | | ??????????????????????????????????# # # | | ??????????????????????????????????######## ##### | | ?????????????????????????????????????????# #???? | | ?????????????????????????!???????????????# #???? | | ?????????????????????????????????????????# #???? | | ?????????????????????????????????????????# #???? | | ?????????????????????????????????????????# #???? | | ?????????????????????????????????????????# #???? | | ?????????????????????????????????????????# #???? | | ?????????????????????????????????#######"# #???? | | ?????????????????????????????????# !]!!#[! #???? | | ?????????????????????????????????# ][=[/% %##??? | | ???????????????#????????????????## ][=*#% ##??? | | ???????????????# ??#????????????########## ##??? | | ??????????????## ?# ???????????# ##???#?# #???? | | ?????????????## a##+##???????## # ? #???? | | ????????????? k ########### #???? | | ??????????????? T g%% ! ! "???? | | ????????????????????## g % == +???? | | ?????????????????????# lb % % |%=% # ??? | | ?????????????????????# **[ % # ??? | | ?????????????????????# @ x%%% ###?? | | ?????????????????????# Y % #???? | | ?????????????????????# ##+############### #???? | | ????????????????]????# ?????????????[???# #??=? | | ?????????????????????# ??????????????????? +???? | | ?????????????????????# ????????????????????? ????? | | ?????????????????????#???????????????????????????? | | ?????????????????????????????????????????????????? | | ?????????????????????????????????????????????????? | | ?????????????????????????????????????????????????? | | ?????????????????????????????????????????????????? | | ?????????????????????????????????????????????????? | | ?????????????????????????????????????????????????? | | ?????????????????????????????????????????????????? | | ?????????????????????????????????????????????????? | | ?????????????????????????????????????????????????? | | | | | | | | | | | | | | | | | | | +----------------------------------------------------+ Best States ------------- Heat Dissipation 45 Coolant Potential 50 Energy Generation 15 Energy Capacity 280 Matter Stores 300 Matter Capacity 300 Sight Range 21 Terrain Scan Density 10 Armor Coverage 225 Evasion (%) 50 Targeting Accuracy 5 Offensive Hacking 11 Item Schematics ----------------- None Robot Schematics ------------------ None Fabricated ------------ Nothing Repaired ---------- Sub. Monowheel | 45% | -8/Materials Alien Tech Used ----------------- None Achievements -------------- root@ Challenges ------------ None Game ------ Seed SpacefoldDispersalGravjet Manual? 0 Play Time 01:02:26 Cumulative 31.8 hours Start 2025.05.18 @ 00:54:35 End 2025.05.18 @ 19:05:05 Sessions 2 Manual Loads 0 Difficulty Rogue Special Mode None Game No. 25 Rogue 25 Adventurer 0 Explorer 0 Win Type - Total 0 Types 0/0/0/0/0/0/0/0/0/0 Lore% 32 Gallery% 25 Achievement% 22 Wizard Run 0 Options --------- Layout 1 ASCII 0 Keyboard 0 Movement Mouse Keybinds 0 Fullscreen 1 Font 24/Smallcaps Map View 50x35 Zoom Use 0% Tactical HUD 1 Map Filters NONE Filters NONE Steam 1 RUN: 07a23a54-643f-4c6f-8052-cb54efcc716e